bitfinex/quotes_SOLUSD_20241209
["timestamp","ask_amount","ask_price","bid_price","bid_amount"]
[1733740248830,20.0,227.24,227.12,24.027864]
[1733740252133,0.66017683,227.23,227.12,24.027864]
[1733740252906,20.0,227.24,227.12,24.027864]
[1733740254806,20.0,227.24,227.13,0.12549]
[1733740255011,20.0,227.24,227.12,24.027864]
[1733740255212,20.0,227.24,227.14,0.25098]
[1733740257537,2.31780188,227.28,227.14,0.25098]
[1733740257821,0.66017683,227.27,227.14,0.25098]
[1733740258703,0.66017683,227.27,227.13,0.66014677]
[1733740258916,0.12549,227.26,227.11,23.776884]
[1733740259233,0.12549,227.26,227.12,0.25098]
[1733740261248,0.12549,227.26,227.13,0.6601704]
[1733740261417,0.66017683,227.27,227.14,0.25098]
[1733740261618,0.66017683,227.27,227.16,0.25098]
[1733740261822,2.31780188,227.28,227.17,0.66007607]
[1733740262023,2.31780188,227.28,227.17,2.17797607]
[1733740263425,2.31780188,227.28,227.17,1.5179]
[1733740264014,0.66017683,227.27,227.17,1.5179]
[1733740264245,0.66017683,227.27,227.11,1.5179]
[1733740264418,0.12549,227.26,227.11,1.5179]
[1733740264618,0.12549,227.26,227.12,0.25098]
[1733740264829,0.12549,227.26,227.11,1.5179]
[1733740264830,23.902374,227.26,227.11,1.5179]
[1733740265153,20.0,227.23,227.11,1.5179]
[1733740265330,0.66017683,227.22,227.11,1.5179]
[1733740265854,0.12549,227.21,227.11,1.5179]
[1733740266020,20.12549,227.21,227.05,1.5179]
[1733740266212,0.66017683,227.2,227.05,1.5179]
[1733740266416,0.12549,227.19,227.05,1.5179]
[1733740266727,20.0,227.16,227.05,1.5179]
[1733740266946,20.0,227.16,227.06,0.66041925]
[1733740267361,0.66017683,227.15,227.05,1.5179]
[1733740267659,20.0,227.17,227.05,2.17837898]
[1733740267851,20.0,227.19,227.06,0.25098]
[1733740268059,20.0,227.19,227.07,0.6603459]
[1733740268445,0.66017683,227.21,227.08,24.027864]
[1733740268652,1.72951221,227.24,227.1,36.85529775]
[1733740268835,0.66017683,227.23,227.12,0.25098]
[1733740269158,0.66017683,227.23,227.11,0.66014921]
[1733740269159,0.12549,227.24,227.06,23.902374]
[1733740269360,0.66017683,227.23,227.07,0.66031782]
[1733740269669,0.66017683,227.23,227.08,0.25098]
[1733740269857,0.12549,227.22,227.09,0.66028784]
[1733740270058,3.2858581,227.26,227.11,0.12549]
[1733740270265,0.66017683,227.25,227.12,24.027864]
[1733740270440,0.66017683,227.25,227.14,0.25098]
[1733740270644,0.66017683,227.27,227.13,0.66014363]
[1733740271352,20.12549,227.26,227.14,0.66016976]
[1733740271549,0.66017683,227.25,227.14,0.66016976]
[1733740272458,20.0,227.26,227.15,2.18928467]
[1733740273272,0.66017683,227.25,227.15,2.18928467]
[1733740273564,0.66017683,227.25,227.15,1.5291]
[1733740274434,20.0,227.21,227.09,1.6421]
[1733740274641,0.66017683,227.2,227.09,1.6421]
[1733740276359,20.0,227.16,227.06,6.1233]
[1733740276568,0.66017683,227.15,227.06,6.1233]
[1733740277370,20.66017683,227.15,227.03,1.6652]
[1733740277774,0.12549,227.14,227.03,1.6652]
[1733740278833,3.36314481,227.2,227.04,0.91155837]
[1733740279039,0.66017683,227.21,227.06,13.07841375]
[1733740279242,1.81179499,227.22,227.08,6.33748]
[1733740279445,0.66017683,227.24,227.09,0.66027169]
[1733740279767,0.66017683,227.24,227.1,0.25098]
[1733740279958,2.45105899,227.25,227.12,0.25098]
[1733740280148,0.66017683,227.24,227.14,1.6056]
[1733740281350,0.66017683,227.24,227.08,6.0865]
[1733740281667,20.0,227.24,227.08,7.7157]
[1733740281869,20.0,227.22,227.08,7.7157]
[1733740282071,0.66017683,227.21,227.08,7.7157]
[1733740282282,0.12549,227.2,227.08,7.7157]
[1733740282570,23.902374,227.2,227.08,1.6292]
[1733740282772,20.0,227.13,227.02,7.7276]
[1733740282963,0.66017683,227.12,227.02,7.7276]
[1733740284668,0.66017683,227.12,227.02,1.5727]
[1733740285648,23.902374,227.11,227.02,1.5727]
[1733740285984,0.66017683,227.1,227.02,1.5727]
[1733740286151,0.78566683,227.12,227.02,1.5727]
[1733740286586,0.78566683,227.12,226.96,8.2043152]
[1733740286587,20.0,227.08,226.96,8.2043152]
[1733740287180,0.66017683,227.07,226.96,8.2043152]
[1733740287471,20.0,227.08,226.96,8.2043152]
[1733740288346,0.66017683,227.07,226.96,8.2043152]
[1733740288554,0.66017683,227.07,226.96,7.5437]
[1733740288750,0.12549,227.06,226.96,7.5437]
[1733740289163,20.0,227.03,226.96,1.5035]
[1733740289364,0.66017683,227.02,226.91,1.5352]
[1733740289564,20.0,227.03,226.91,1.5352]
[1733740289786,0.66017683,227.02,226.91,1.5352]
[1733740293964,0.66017683,227.02,226.91,2.19606471]
[1733740294193,0.12549,227.06,226.92,23.776884]
[1733740294357,0.12549,227.06,226.93,0.66068632]
[1733740294761,0.12549,227.06,226.94,23.776884]
[1733740294975,0.12549,227.06,226.95,0.66066663]
[1733740295564,0.12549,227.06,226.96,23.902374]
[1733740295759,0.12549,227.06,226.97,0.66064024]
[1733740296978,0.12549,227.06,226.98,24.027864]
[1733740297193,0.12549,227.06,227.01,0.25098]
[1733740297402,0.66017683,227.14,227.0,7.6781]
[1733740297699,0.66017683,227.17,227.01,0.25098]
[1733740297886,0.66017683,227.17,227.01,0.9115117]
[1733740298097,0.66017683,227.17,227.03,0.25098]
[1733740298296,0.12549,227.23,227.04,0.6604074]
[1733740298473,1.80328808,227.17,227.05,23.776884]
[1733740298820,0.66017683,227.22,227.07,23.776884]
[1733740298979,0.66017683,227.24,227.09,23.776884]
[1733740299296,0.66017683,227.24,227.11,24.027864]
[1733740299490,0.66017683,227.27,227.12,0.66019904]
[1733740300408,0.12549,227.26,227.12,0.66019904]
[1733740300775,0.66017683,227.27,227.14,0.25098]
[1733740301071,2.24647099,227.28,227.15,23.776884]
[1733740301316,0.66017683,227.27,227.16,0.66007896]
[1733740301603,0.5115199,227.28,227.16,0.66007896]
[1733740301810,0.5115199,227.28,227.13,6.43636835]
[1733740302102,0.12549,227.27,227.13,0.66007894]
[1733740302296,0.78566683,227.27,227.12,23.776884]
[1733740303166,0.78566683,227.27,227.13,0.66020356]
[1733740304597,0.12549,227.26,227.11,23.776884]
[1733740304775,0.12549,227.24,227.11,23.776884]
[1733740305181,0.12549,227.24,227.12,0.66024685]
[1733740305867,0.78566683,227.24,227.12,0.66024685]
[1733740306079,0.12549,227.24,227.12,0.66024685]
[1733740306495,0.25098,227.26,227.12,0.66024685]
[1733740310896,0.12549,227.26,227.12,0.66024685]
[1733740311483,0.12549,227.26,227.13,23.776884]
[1733740312005,0.12549,227.26,227.12,24.027864]
[1733740312503,0.12549,227.26,227.11,0.6601864]
[1733740312712,0.12549,227.22,227.1,6.096]
[1733740313015,20.78566683,227.22,227.1,6.096]
[1733740313893,23.776884,227.21,227.04,7.18513781]
[1733740314086,0.12549,227.17,227.04,6.5248]
[1733740314285,0.12549,227.17,227.01,2.27875999]
[1733740314286,0.12549,227.16,227.01,2.27875999]
[1733740314601,0.12549,227.14,227.01,2.27875999]
[1733740314777,20.0,227.1,226.98,7.18536058]
[1733740314978,20.0,227.1,226.95,1.6183]
[1733740314979,0.12549,227.09,226.93,0.66056058]
[1733740315171,20.0,227.1,226.94,0.25098]
[1733740315380,20.0,227.1,226.95,0.66064658]
[1733740316308,20.0,227.1,226.96,23.776884]
[1733740316482,20.0,227.1,226.97,23.776884]
[1733740318497,0.66017683,227.12,226.99,24.027864]
[1733740318701,0.66017683,227.12,227.01,23.776884]
[1733740319206,6.6046,227.13,227.01,23.776884]
[1733740319207,0.66017683,227.11,227.01,23.776884]
[1733740319517,0.66017683,227.11,226.99,23.776884]
[1733740319681,0.66017683,227.11,227.01,23.776884]
[1733740319882,20.0,227.1,227.01,23.776884]
[1733740320883,6.6046,227.13,226.99,24.027864]
[1733740321180,1.5076,227.14,227.02,0.25098]
[1733740321399,0.66017683,227.18,227.04,23.776884]
[1733740321590,0.66017683,227.18,227.05,0.66038596]
[1733740322080,8.18107729,227.19,227.05,0.66038596]
[1733740322081,6.4244,227.19,227.06,23.776884]
[1733740322286,6.4244,227.19,227.08,23.776884]
[1733740322479,1.524,227.2,227.1,23.776884]
[1733740322788,0.66017683,227.24,227.11,0.66024934]
[1733740323284,0.66017683,227.24,227.08,23.776884]
[1733740323285,0.66017683,227.24,227.08,24.43710703]
[1733740323493,0.12549,227.23,227.06,24.153354]
[1733740323813,0.66017683,227.22,227.08,23.776884]
[1733740324311,20.66017683,227.22,227.08,23.776884]
[1733740324609,20.66017683,227.22,227.07,24.027864]
[1733740324807,20.66017683,227.22,227.08,0.66034414]
[1733740325112,0.25098,227.21,227.05,0.66034516]
[1733740325291,0.25098,227.19,227.03,0.66042975]
[1733740325497,0.66017683,227.18,227.03,0.66042975]
[1733740326678,0.66017683,227.23,227.09,0.25098]
[1733740326906,0.66017683,227.24,227.11,23.776884]
[1733740327098,0.66017683,227.24,227.13,23.776884]
[1733740327298,0.66017683,227.24,227.14,0.66017157]
[1733740327686,0.66017683,227.24,227.09,0.66018977]
[1733740327916,0.66017683,227.24,227.1,24.027864]
[1733740328213,0.66017683,227.24,227.12,23.776884]
[1733740328409,0.66017683,227.24,227.13,0.66018919]
[1733740328783,20.0,227.22,227.13,0.66018919]
[1733740330516,20.0,227.22,227.14,23.776884]
[1733740331381,20.0,227.22,227.15,0.66015196]
[1733740331616,2.28285619,227.28,227.16,23.776884]
[1733740331785,2.94303302,227.28,227.17,0.66004574]
[1733740331986,2.28285619,227.28,227.18,23.776884]
[1733740332289,2.28285619,227.28,227.2,24.153354]
[1733740332488,2.28285619,227.28,227.22,24.027864]
[1733740332803,0.5115199,227.28,227.23,0.65984897]
[1733740333790,0.5115199,227.28,227.24,24.027864]
[1733740333996,0.5115199,227.28,227.26,23.776884]
[1733740334432,0.5115199,227.28,227.27,0.65979927]
[1733740334890,0.5115199,227.28,227.22,0.65981454]
[1733740335090,0.5115199,227.28,227.23,23.776884]
[1733740335428,0.5115199,227.28,227.14,21.16543901]
[1733740335715,0.5115199,227.28,227.14,0.65988554]
[1733740337120,1.654,227.27,227.12,0.66011096]
[1733740337289,20.0,227.22,227.12,0.66011096]
[1733740337820,20.0,227.22,227.13,0.25098]
[1733740337995,20.0,227.22,227.14,0.66010225]
[1733740338320,6.067,227.25,227.14,0.66010225]
[1733740338912,6.067,227.25,227.15,23.776884]
[1733740339423,20.0,227.22,227.1,0.12549]
[1733740339624,20.0,227.22,227.11,0.66018602]
[1733740339914,20.0,227.22,227.12,0.25098]
[1733740340317,20.0,227.22,227.14,0.25098]
[1733740340615,6.067,227.25,227.16,23.776884]
[1733740342850,20.0,227.22,227.12,23.776884]
[1733740343451,20.0,227.22,227.13,0.66022399]
[1733740345532,0.66017683,227.21,227.12,23.776884]
[1733740346417,0.66017683,227.21,227.06,0.66029586]
[1733740346620,0.12549,227.2,227.06,0.66029586]
[1733740346947,1.6085,227.19,227.04,0.66035872]
[1733740347144,0.66017683,227.18,227.04,0.66035872]
[1733740348423,0.66017683,227.18,227.05,23.776884]
[1733740348639,20.0,227.14,227.05,23.776884]
[1733740348833,0.66017683,227.13,227.05,23.776884]
[1733740349341,0.66017683,227.13,227.01,0.66048611]
[1733740349759,0.66017683,227.13,227.02,0.66049006]
[1733740350162,20.0,227.14,226.95,7.6792]
[1733740350163,20.0,227.14,227.03,0.66054955]
[1733740351032,0.66017683,227.13,227.03,0.66054955]
[1733740351232,20.0,227.14,227.01,0.66048513]
[1733740351431,20.0,227.14,227.02,23.776884]
[1733740351650,20.0,227.14,227.03,0.66046482]
[1733740352556,20.0,227.14,227.04,23.776884]
[1733740352760,6.0383,227.17,227.07,0.25098]
[1733740352941,6.0383,227.17,227.09,23.776884]
[1733740353271,1.6085,227.19,227.11,23.776884]
[1733740353566,1.6085,227.19,227.13,23.776884]
[1733740353741,1.6085,227.19,227.15,23.776884]
[1733740353937,1.6085,227.19,227.16,0.66013717]
[1733740354445,6.583,227.22,227.16,0.66013717]
[1733740354633,6.583,227.22,227.13,23.776884]
[1733740354832,6.583,227.22,227.15,23.776884]
[1733740355039,6.583,227.22,227.1,0.66017013]
[1733740355362,6.583,227.22,227.11,23.776884]
[1733740355746,6.583,227.22,227.12,0.66023556]
[1733740356332,6.583,227.22,227.13,24.027864]
[1733740356555,6.583,227.22,227.15,24.027864]
[1733740356862,6.583,227.22,227.17,23.776884]
[1733740357242,6.583,227.22,227.16,0.66006029]
[1733740357446,6.583,227.22,227.14,23.776884]
[1733740357645,6.583,227.22,227.12,23.776884]
[1733740358045,6.583,227.22,227.13,0.66019175]
[1733740358352,6.583,227.22,227.14,23.776884]
[1733740358870,6.583,227.22,227.15,0.66016116]
[1733740359969,6.583,227.22,227.16,23.776884]
[1733740360175,6.583,227.22,227.17,0.66007426]
[1733740360381,1.6258,227.24,227.17,0.66007426]
[1733740361444,0.66017683,227.23,227.1,20.0]
[1733740361761,0.66017683,227.23,227.09,20.66017768]
[1733740362475,0.66017683,227.23,227.1,20.0]
[1733740362850,0.66017683,227.23,227.09,23.776884]
[1733740363348,20.0,227.19,227.09,23.776884]
[1733740363549,0.66017683,227.18,227.09,23.776884]
[1733740364984,20.0,227.19,227.1,0.66035568]
[1733740365155,20.0,227.19,227.11,23.776884]
[1733740365353,20.0,227.19,227.12,0.66022913]
[1733740366081,6.023,227.22,227.13,23.776884]
[1733740368266,6.023,227.22,227.14,0.66016483]
[1733740368460,6.023,227.22,227.15,23.776884]
[1733740368883,6.023,227.22,227.11,0.91112374]
[1733740369182,6.023,227.22,227.12,23.776884]
[1733740369587,0.66017683,227.21,227.12,23.776884]
[1733740370070,20.0,227.19,227.08,0.6602718]
[1733740370265,0.66017683,227.18,227.08,0.6602718]
[1733740370468,0.66017683,227.18,227.07,20.0]
[1733740370780,0.66017683,227.18,227.05,0.66037851]
[1733740370955,0.25098,227.16,227.02,0.66044921]
[1733740371158,20.0,227.13,226.97,20.49097427]
[1733740371388,0.66017683,227.12,226.98,0.66054461]
[1733740371752,0.66017683,227.12,226.98,21.15151888]
[1733740371956,0.66017683,227.12,226.99,0.25098]
[1733740372179,0.66017683,227.12,227.01,0.12549]
[1733740372386,6.4026,227.16,227.05,0.25098]
[1733740372561,6.4026,227.16,227.07,23.776884]
[1733740376579,6.4026,227.16,227.08,0.66036455]
[1733740377192,6.4026,227.16,227.09,23.776884]
[1733740377384,6.4026,227.16,227.1,0.66028409]
[1733740378065,1.5006,227.17,227.11,23.776884]
[1733740378389,1.5006,227.17,227.13,23.776884]
[1733740378560,1.5006,227.17,227.14,0.66019599]
[1733740380187,6.3474,227.21,227.14,0.66019599]
[1733740380188,6.3474,227.21,227.15,23.776884]
[1733740380372,6.3474,227.21,227.17,23.776884]
[1733740380563,6.3474,227.21,227.18,0.66007813]
[1733740380769,1.6414,227.22,227.18,0.66007813]
[1733740383897,2.1510199,227.28,227.21,0.12549]
[1733740384100,2.1510199,227.28,227.22,24.027864]
[1733740384280,0.5115199,227.28,227.24,23.776884]
[1733740384472,0.5115199,227.28,227.25,0.65985582]
[1733740384679,0.5115199,227.28,227.26,23.776884]
[1733740384895,0.5115199,227.28,227.27,24.43665731]
[1733740385202,6.2408,227.37,227.32,134.8489801]
[1733740385371,6.2408,227.37,227.28,24.027864]
[1733740385571,6.2408,227.37,227.3,23.776884]
[1733740385801,6.2408,227.37,227.31,0.65968114]
[1733740387188,6.2408,227.37,227.32,23.776884]
[1733740387388,6.5303,227.44,227.34,23.776884]
[1733740387594,6.5303,227.44,227.36,23.776884]
[1733740387902,6.5303,227.44,227.38,23.776884]
[1733740388102,6.5303,227.44,227.39,0.65945179]
[1733740388679,6.5303,227.44,227.4,23.776884]
[1733740388978,6.5303,227.44,227.41,0.65937968]
[1733740389173,1.6292,227.49,227.41,0.65937968]
[1733740389174,8.1822,227.49,227.41,0.65937968]
[1733740389487,8.1822,227.49,227.42,23.776884]
[1733740389793,8.1822,227.49,227.44,23.776884]
[1733740390108,0.66017683,227.48,227.39,23.776884]
[1733740390406,0.66017683,227.48,227.37,0.25098]
[1733740390899,20.0,227.46,227.33,20.0]
[1733740391102,0.66017683,227.45,227.29,21.09850763]
[1733740391472,0.66017683,227.45,227.29,0.6594758]
[1733740391670,0.66017683,227.45,227.28,0.65966395]
[1733740391671,6.4525,227.44,227.28,0.65966395]
[1733740391874,0.66017683,227.43,227.28,0.65966395]
[1733740392809,6.4525,227.44,227.31,0.25098]
[1733740393109,7.11267683,227.44,227.32,0.65960559]
[1733740393601,6.4525,227.44,227.34,0.25098]
[1733740393806,6.4525,227.44,227.36,23.776884]
[1733740394117,6.4525,227.44,227.38,23.776884]
[1733740394280,6.4525,227.44,227.4,23.776884]
[1733740395803,7.7104,227.49,227.41,0.65938508]
[1733740397077,7.7104,227.49,227.38,23.776884]
[1733740397320,7.7104,227.49,227.32,1.5131]
[1733740397321,7.7104,227.49,227.4,23.776884]
[1733740397607,7.7104,227.49,227.32,1.5131]
[1733740397608,0.66017683,227.48,227.37,23.776884]
[1733740398178,7.7104,227.49,227.39,23.776884]
[1733740399178,7.7104,227.49,227.39,0.65941212]
[1733740399890,7.7104,227.49,227.4,23.776884]
[1733740400314,0.66017683,227.48,227.4,23.776884]
[1733740400614,7.7104,227.49,227.4,23.776884]
[1733740401088,0.66017683,227.48,227.4,23.776884]
[1733740401287,7.7104,227.49,227.4,23.776884]
[1733740401975,7.7104,227.49,227.38,0.25098]
[1733740402305,0.66017683,227.48,227.39,23.776884]
[1733740403518,0.66017683,227.48,227.35,0.65950193]
[1733740404011,7.7104,227.49,227.36,0.25098]
[1733740404198,7.7104,227.49,227.37,0.65944061]
[1733740404594,7.7104,227.49,227.38,20.69001183]
[1733740404908,7.7104,227.49,227.4,23.776884]
[1733740405225,7.7104,227.49,227.41,0.65934989]
[1733740405740,7.7104,227.49,227.43,0.25098]
[1733740405901,6.0812,227.49,227.45,23.776884]
[1733740406482,6.0812,227.49,227.46,0.65925095]
[1733740406691,0.5115199,227.5,227.47,23.776884]
[1733740407376,0.5115199,227.5,227.49,23.776884]
[1733740407908,7.8823,227.59,227.49,23.776884]
[1733740408220,7.8823,227.59,227.51,23.776884]
[1733740408515,7.8823,227.59,227.5,0.65903837]
[1733740408684,7.8823,227.59,227.51,23.776884]
[1733740409310,7.8823,227.59,227.52,0.6590946]
[1733740409530,7.8823,227.59,227.53,23.776884]
[1733740410529,7.8823,227.59,227.53,24.027864]
[1733740411806,7.8823,227.59,227.53,23.776884]
[1733740413097,7.8823,227.59,227.54,0.25098]
[1733740415224,6.615,227.64,227.57,23.776884]
[1733740417123,6.615,227.64,227.53,0.65894067]
[1733740417313,6.615,227.64,227.54,23.776884]
[1733740417834,6.615,227.64,227.52,24.027864]
[1733740418042,6.615,227.64,227.54,24.027864]
[1733740418215,6.615,227.64,227.56,23.776884]
[1733740421956,6.615,227.64,227.58,23.776884]
[1733740422450,6.615,227.64,227.6,23.776884]
[1733740422955,0.5115199,227.73,227.62,23.776884]
[1733740422956,6.4484,227.69,227.62,23.776884]
[1733740423757,6.4484,227.69,227.65,0.25098]
[1733740423932,0.5115199,227.73,227.67,23.776884]
[1733740424131,0.5115199,227.73,227.66,0.65864423]
[1733740424332,0.5115199,227.73,227.65,23.776884]
[1733740424537,0.5115199,227.73,227.63,23.776884]
[1733740424736,0.5115199,227.73,227.65,23.776884]
[1733740425258,0.5115199,227.73,227.61,0.65873659]
[1733740425554,0.5115199,227.73,227.63,0.12549]
[1733740425726,20.0,227.72,227.63,0.37647]
[1733740425927,20.0,227.72,227.64,23.776884]
[1733740430545,0.5115199,227.73,227.65,1.03520788]
[1733740430757,0.5115199,227.73,227.68,0.12549]
[1733740430926,0.5115199,227.73,227.68,23.902374]
[1733740431262,0.5115199,227.73,227.71,0.25098]
[1733740431429,0.5115199,227.73,227.71,0.90946769]
[1733740431632,0.5115199,227.73,227.72,23.902374]
[1733740431828,0.5115199,227.73,227.72,24.153354]
[1733740433456,0.5115199,227.73,227.72,36.91766278]
[1733740433653,0.5115199,227.73,227.72,37.57602571]
[1733740433871,0.5115199,227.73,227.72,24.81171693]
[1733740435158,0.5115199,227.73,227.72,44.153354]
[1733740435327,0.5115199,227.73,227.72,44.81176834]
[1733740437851,0.5115199,227.73,227.72,44.153354]
[1733740438630,0.5115199,227.73,227.72,44.81173542]
[1733740438857,0.5115199,227.73,227.72,24.81173542]
[1733740439067,0.5115199,227.73,227.72,0.37647]
[1733740439442,0.5115199,227.73,227.67,0.65851466]
[1733740439655,6.0175,227.72,227.63,0.65851466]
[1733740439858,6.0175,227.72,227.6,0.25098]
[1733740440044,6.0175,227.72,227.61,0.65871984]
[1733740440574,6.0175,227.72,227.62,0.25098]
[1733740440747,6.0175,227.72,227.58,1.5193]
[1733740440748,6.0175,227.72,227.64,24.027864]
[1733740440949,6.0175,227.72,227.66,23.776884]
[1733740441568,6.0175,227.72,227.67,0.12549]
[1733740442580,6.0175,227.72,227.67,0.25098]
[1733740442881,0.5115199,227.73,227.68,0.25098]
[1733740443044,0.5115199,227.73,227.7,23.902374]
[1733740443246,0.5115199,227.73,227.71,0.12549]
[1733740443459,0.5115199,227.73,227.72,24.153354]
[1733740446042,0.5115199,227.73,227.72,23.776884]
[1733740446243,0.5115199,227.73,227.67,0.65849108]
[1733740446672,7.9187,227.72,227.58,0.65864432]
[1733740446843,20.0,227.69,227.54,0.65885236]
[1733740447049,20.0,227.69,227.58,0.25098]
[1733740447384,20.0,227.69,227.57,12.76430878]
[1733740447385,20.0,227.69,227.59,0.65878265]
[1733740447550,20.0,227.69,227.6,0.12549]
[1733740447894,20.0,227.69,227.62,0.12549]
[1733740448182,7.9187,227.72,227.62,0.12549]
[1733740448371,7.9187,227.72,227.63,0.25098]
[1733740448587,7.9187,227.72,227.63,23.902374]
[1733740448588,0.66017683,227.71,227.63,23.902374]
[1733740448749,20.0,227.69,227.58,0.65873298]
[1733740449061,0.66017683,227.68,227.59,0.25098]
[1733740449263,0.66017683,227.68,227.54,0.65888737]
[1733740449451,0.66017683,227.68,227.55,0.25098]
[1733740449652,0.66017683,227.68,227.57,0.12549]
[1733740449851,0.66017683,227.68,227.56,0.65893928]
[1733740450291,0.66017683,227.68,227.51,0.65896899]
[1733740450450,0.66017683,227.68,227.52,0.25098]
[1733740450651,0.66017683,227.68,227.53,0.65898615]
[1733740451089,6.0619,227.67,227.54,0.25098]
[1733740451385,20.0,227.64,227.5,0.65899762]
[1733740451587,0.66017683,227.63,227.5,0.65899762]
[1733740451788,2.16457683,227.66,227.51,0.25098]
[1733740451994,20.0,227.64,227.52,0.65898958]
[1733740452199,20.0,227.64,227.53,0.25098]
[1733740452368,0.66017683,227.63,227.5,0.65906972]
[1733740452895,0.66017683,227.63,227.51,0.12549]
[1733740453061,0.66017683,227.63,227.52,0.65901414]
[1733740453266,0.66017683,227.63,227.53,0.12549]
[1733740453666,20.0,227.64,227.55,23.902374]
[1733740454164,0.66017683,227.63,227.55,23.902374]
[1733740454368,0.66017683,227.63,227.56,0.12549]
[1733740454593,0.66017683,227.63,227.55,23.902374]
[1733740454891,20.0,227.59,227.51,0.12549]
[1733740455259,20.0,227.59,227.49,0.37647]
[1733740455868,20.0,227.59,227.51,0.12549]
[1733740456080,6.2432,227.62,227.53,24.027864]
[1733740456278,6.2432,227.62,227.56,0.12549]
[1733740456666,6.21784021,227.62,227.56,0.12549]
[1733740456897,0.66017683,227.61,227.55,23.902374]
[1733740457189,6.21784021,227.62,227.55,23.902374]
[1733740457899,6.21784021,227.62,227.57,0.12549]
[1733740458396,6.21784021,227.62,227.58,0.12549]
[1733740459361,6.21784021,227.62,227.59,0.12549]
[1733740459589,6.21784021,227.62,227.6,0.12549]
[1733740459963,6.21784021,227.62,227.61,0.12549]
[1733740460991,1.5044,227.66,227.62,0.12549]
[1733740461198,6.4439,227.68,227.64,0.12549]
[1733740461689,6.4439,227.68,227.66,0.12549]
[1733740462211,6.4439,227.68,227.65,23.902374]
[1733740465003,6.4439,227.68,227.58,23.902374]
[1733740465211,6.4439,227.68,227.6,24.153354]
[1733740465774,6.4439,227.68,227.62,24.027864]
[1733740466207,6.4439,227.68,227.62,23.902374]
[1733740466702,5.9439,227.68,227.62,23.902374]
[1733740472818,0.66017683,227.67,227.62,23.902374]
[1733740473027,5.9439,227.68,227.62,23.902374]
[1733740477105,5.9439,227.68,227.63,0.12549]
[1733740478002,5.9439,227.68,227.62,23.902374]
[1733740478203,21.6241,227.71,227.62,23.902374]
[1733740478392,0.66017683,227.7,227.62,23.902374]
[1733740480797,0.66017683,227.7,227.55,0.65887098]
[1733740481019,20.0,227.66,227.55,0.65887098]
[1733740481202,0.66017683,227.65,227.51,13.42323186]
[1733740481509,20.0,227.66,227.52,0.25098]
[1733740481718,20.0,227.66,227.54,0.25098]
[1733740481921,0.66017683,227.65,227.55,0.65897049]
[1733740482116,0.66017683,227.65,227.52,0.65897049]
[1733740482117,1.6052,227.64,227.52,0.65897049]
[1733740482328,0.66017683,227.63,227.49,0.6590901]
[1733740482530,20.0,227.59,227.47,0.6591418]
[1733740482703,0.66017683,227.58,227.47,0.6591418]
[1733740483609,0.66017683,227.58,227.44,0.65920246]
[1733740483807,1.6052,227.57,227.44,0.65920246]
[1733740484007,0.66017683,227.56,227.45,0.25098]
[1733740484231,0.66017683,227.56,227.44,0.65920246]
[1733740484542,0.66017683,227.56,227.4,12.76430878]
[1733740484543,0.66017683,227.56,227.41,0.65929992]
[1733740485420,6.5605,227.55,227.42,0.25098]
[1733740485633,0.66017683,227.54,227.45,0.12549]
[1733740487115,0.66017683,227.46,227.34,0.65931012]
[1733740487632,0.66017683,227.46,227.29,0.65960407]
[1733740488022,0.66017683,227.46,227.29,13.42391285]
[1733740488352,0.66017683,227.46,227.3,0.25098]
[1733740488637,0.66017683,227.46,227.31,0.6595798]
[1733740489010,20.0,227.47,227.31,0.6595798]
[1733740489011,20.0,227.47,227.32,13.01528878]
[1733740489214,20.0,227.47,227.34,24.153354]
[1733740489429,20.0,227.47,227.36,24.153354]
[1733740489632,20.0,227.47,227.38,24.027864]
[1733740490509,0.66017683,227.46,227.38,23.902374]
[1733740490739,0.66017683,227.46,227.32,0.65951234]
[1733740491549,0.66017683,227.46,227.32,0.25098]
[1733740491709,0.66017683,227.46,227.34,0.12549]
[1733740492023,0.66017683,227.46,227.35,0.12549]